fUST/lending_fUST_20250115
["ID","MTS","AMOUNT","RATE_DAILY","PERIOD"]
[348990329,1736921438047,-183.081458,0.0002041,2]
[348990330,1736921438057,-183.081458,0.0002041,2]
[348990331,1736921438066,-539.21,0.0002041,3]
[348990332,1736921438075,-4985.93,0.0002041,3]
[348990333,1736921438085,-500.0,0.0002041,3]
[348990334,1736921438094,-500.0,0.0002041,3]
[348990336,1736921438104,-151.0,0.0002041,2]
[348990338,1736921438113,-511.89,0.0002041,3]
[348990340,1736921438122,-547.83,0.0002041,3]
[348990341,1736921438131,-500.0,0.0002041,3]
[348990343,1736921438140,-1246.44,0.0002041,3]
[348990345,1736921438150,-356.008,0.0002041,2]
[348990348,1736921438161,-356.008,0.0002041,2]
[348990350,1736921438171,-448.44159682,0.0002041,3]
[348990352,1736921438181,-151.0,0.0002041,2]
[348990354,1736921438191,-997.26,0.0002041,3]
[348990356,1736921438200,-684.73,0.0002041,3]
[348990358,1736921438210,-165.712944,0.0002041,2]
[348990359,1736921438219,-165.712944,0.0002041,2]
[348990361,1736921438229,-1337.81,0.0002041,3]
[348990363,1736921438238,-1509.14,0.0002041,2]
[348990365,1736921438247,-550.31603759,0.0002041,3]
[348990367,1736921438256,-804.34,0.0002041,3]
[348990369,1736921438266,-151.0,0.00020438,2]
[348990370,1736921438276,-350.613162,0.00020438,2]
[348990372,1736921438285,-350.613162,0.00020438,2]
[348990374,1736921438294,-256.454363,0.00020438,2]
[348990376,1736921438304,-256.454363,0.00020438,2]
[348990378,1736921438313,-151.0,0.00020438,2]
[348990379,1736921438323,-151.0,0.00020438,2]
[348990380,1736921438332,-800.0,0.00020438,2]
[348990381,1736921438341,-278.388583,0.00020447,2]
[348990382,1736921438351,-208.47439689,0.00020515,2]
[348990383,1736921438360,-163.564247,0.00020547,2]
[348990384,1736921438370,-163.564247,0.00020547,2]
[348990385,1736921438379,-248.289684,0.00020547,2]
[348990386,1736921438388,-151.0,0.00020547,2]
[348990387,1736921438398,-151.0,0.00020547,2]
[348990388,1736921438407,-357.758411,0.00020547,2]
[348990389,1736921438415,-357.758411,0.00020547,2]
[348990390,1736921438425,-196.115436,0.00020547,2]
[348990391,1736921438435,-196.115436,0.00020547,2]
[348990392,1736921438444,-539.21,0.00020547,3]
[348990393,1736921438454,-4985.93,0.00020547,3]
[348990394,1736921438464,-500.0,0.00020547,3]
[348990395,1736921438474,-500.0,0.00020547,3]
[348990396,1736921438483,-511.89,0.00020547,3]
[348990397,1736921438493,-547.83,0.00020547,3]
[348990398,1736921438503,-500.0,0.00020547,3]
[348990399,1736921438513,-1246.44,0.00020547,3]
[348990400,1736921438523,-997.26,0.00020547,3]
[348990401,1736921438533,-684.73,0.00020547,3]
[348990402,1736921438542,-1337.81,0.00020547,3]
[348990403,1736921438552,-1509.14,0.00020547,2]
[348990404,1736921438562,-804.34,0.00020547,3]
[348990405,1736921438571,-183.081458,0.00020684,2]
[348990406,1736921438581,-183.081458,0.00020684,2]
[348990407,1736921438591,-151.0,0.00020684,2]
[348990408,1736921438601,-350.613162,0.00020684,2]
[348990409,1736921438611,-350.613162,0.00020684,2]
[348990410,1736921438621,-539.21,0.00020684,3]
[348990411,1736921438631,-256.454363,0.00020684,2]
[348990412,1736921438641,-256.454363,0.00020684,2]
[348990413,1736921438654,-151.0,0.00020684,2]
[348990414,1736921438663,-4985.93,0.00020684,3]
[348990415,1736921438674,-500.0,0.00020684,3]
[348990416,1736921438684,-500.0,0.00020684,3]
[348990417,1736921438693,-241.565594,0.00020684,2]
[348990418,1736921438703,-511.89,0.00020684,3]
[348990419,1736921438712,-547.83,0.00020684,3]
[348990420,1736921438722,-352.64853699,0.00020684,3]
[348990421,1736921438731,-151.0,0.00020684,2]
[348990422,1736921438741,-1246.44,0.00020684,3]
[348990423,1736921438751,-356.008,0.00020684,2]
[348990424,1736921438762,-356.008,0.00020684,2]
[348990425,1736921438773,-231.066529,0.00020684,2]
[348990426,1736921438783,-997.26,0.00020684,3]
[348990427,1736921438793,-684.73,0.00020684,3]
[348990428,1736921438802,-165.712944,0.00020684,2]
[348990429,1736921438811,-165.712944,0.00020684,2]
[348990430,1736921438820,-1337.81,0.00020684,3]
[348990431,1736921438830,-1509.14,0.00020684,2]
[348990432,1736921438839,-804.34,0.00020684,3]
[348990433,1736921438849,-620.0,0.000208,2]
[348990434,1736921438859,-151.0,0.00020821,2]
[348990435,1736921438868,-151.0,0.00020821,2]
[348990436,1736921438877,-357.758411,0.00020821,2]
[348990437,1736921438887,-357.758411,0.00020821,2]
[348990438,1736921438896,-196.115436,0.00020821,2]
[348990439,1736921438906,-196.115436,0.00020821,2]
[348990440,1736921438915,-539.21,0.00020821,3]
[348990441,1736921438925,-4985.93,0.00020821,3]
[348990442,1736921438935,-500.0,0.00020821,3]
[348990443,1736921438945,-500.0,0.00020821,3]
[348990444,1736921438955,-511.89,0.00020821,3]
[348990445,1736921438964,-547.83,0.00020821,3]
[348990446,1736921438975,-1246.44,0.00020821,3]
[348990447,1736921438985,-997.26,0.00020821,3]
[348990448,1736921438995,-684.73,0.00020821,3]
[348990449,1736921439004,-1337.81,0.00020821,3]
[348990450,1736921439014,-1509.14,0.00020821,2]
[348990451,1736921439024,-804.34,0.00020821,3]
[348990452,1736921439033,-208.47439689,0.00020823,2]
[348990453,1736921439042,-163.564247,0.00020958,2]
[348990454,1736921439051,-163.564247,0.00020958,2]
[348990455,1736921439061,-539.21,0.00020958,3]
[348990456,1736921439071,-4985.93,0.00020958,3]
[348990457,1736921439080,-250.06245678,0.00020958,3]
[348990458,1736921439089,-500.0,0.00020958,3]
[348990459,1736921439099,-511.89,0.00020958,3]
[348990460,1736921439107,-547.83,0.00020958,3]
[348990461,1736921439117,-1246.44,0.00020958,3]
[348990462,1736921439127,-356.008,0.00020958,2]
[348990463,1736921439136,-356.008,0.00020958,2]
[348990464,1736921439145,-997.26,0.00020958,3]
[348990465,1736921439155,-684.73,0.00020958,3]
[348990466,1736921439165,-165.712944,0.00020958,2]
[348990467,1736921439175,-165.712944,0.00020958,2]
[348990468,1736921439185,-1337.81,0.00020958,3]
[348990469,1736921439195,-1509.14,0.00020958,2]
[348990470,1736921439204,-804.34,0.00020958,3]
[348990471,1736921439213,-154.5,0.00020958,2]
[348990472,1736921439223,-150.0,0.00021,2]
[348990473,1736921439233,-151.0,0.00021095,2]
[348990474,1736921439242,-151.0,0.00021095,2]
[348990475,1736921439251,-183.081458,0.00021095,2]
[348990476,1736921439261,-183.081458,0.00021095,2]
[348990477,1736921439270,-151.0,0.00021095,2]
[348990478,1736921439279,-357.758411,0.00021095,2]
[348990479,1736921439289,-357.758411,0.00021095,2]
[348990480,1736921439299,-151.0,0.00021095,2]
[348990481,1736921439309,-196.115436,0.00021095,2]
[348990482,1736921439319,-196.115436,0.00021095,2]
[348990483,1736921439329,-350.613162,0.00021095,2]
[348990484,1736921439338,-350.613162,0.00021095,2]
[348990486,1736921439348,-539.21,0.00021095,3]
[348990487,1736921439357,-256.454363,0.00021095,2]
[348990489,1736921439367,-256.454363,0.00021095,2]
[348990490,1736921439377,-157.975316,0.00021095,2]
[348990491,1736921439386,-4985.93,0.00021095,3]
[348990492,1736921439395,-500.0,0.00021095,3]
[348990493,1736921439404,-511.89,0.00021095,3]
[348990494,1736921439413,-547.83,0.00021095,3]
[348990495,1736921439423,-151.0,0.00021095,2]
[348990496,1736921439432,-1246.44,0.00021095,3]
[348990497,1736921439442,-997.26,0.00021095,3]
[348990498,1736921439451,-684.73,0.00021095,3]
[348990499,1736921439461,-1337.81,0.00021095,3]
[348990500,1736921439470,-1509.14,0.00021095,2]
[348990501,1736921439479,-804.34,0.00021095,3]
[348990503,1736921439488,-151.0,0.000211,2]
[348990505,1736921439496,-208.47439689,0.00021131,2]
[348990507,1736921439505,-539.21,0.00021232,3]
[348990508,1736921439514,-4985.93,0.00021232,3]
[348990510,1736921439524,-477.89663666,0.00021232,3]
[348990512,1736921439533,-511.89,0.00021232,3]
[348990514,1736921439542,-547.83,0.00021232,3]
[348990515,1736921439551,-1246.44,0.00021232,3]
[348990517,1736921439561,-356.008,0.00021232,2]
[348990518,1736921439571,-356.008004,0.00021232,2]
[348990519,1736921439580,-997.26,0.00021232,3]
[348990520,1736921439589,-684.73,0.00021232,3]
[348990521,1736921439598,-165.712944,0.00021232,2]
[348990522,1736921439607,-165.71295,0.00021232,2]
[348990524,1736921439616,-1337.81,0.00021232,3]
[348990525,1736921439626,-1509.14,0.00021232,2]
[348990527,1736921439635,-804.34,0.00021232,3]
[348990528,1736921439645,-163.564247,0.00021369,2]
[348990529,1736921439657,-163.564247,0.00021369,2]
[348990530,1736921439667,-183.081458,0.00021369,2]
[348990531,1736921439678,-183.081458,0.00021369,2]
[348990533,1736921439687,-151.0,0.00021369,2]
[348990535,1736921439698,-357.758411,0.00021369,2]
[348990536,1736921439708,-357.758414,0.00021369,2]
[348990537,1736921439718,-191.366239,0.00021369,2]
[348990538,1736921439729,-196.115436,0.00021369,2]
[348990539,1736921439739,-196.11543,0.00021369,2]
[348990540,1736921439750,-350.613162,0.00021369,2]
[348990541,1736921439760,-350.61317,0.00021369,2]
[348990542,1736921439770,-539.21,0.00021369,3]
[348990543,1736921439780,-256.454363,0.00021369,2]
[348990544,1736921439790,-256.454359,0.00021369,2]
[348990546,1736921439799,-4985.93,0.00021369,3]
[348990547,1736921439809,-511.89,0.00021369,3]
[348990548,1736921439819,-547.83,0.00021369,3]
[348990549,1736921439830,-151.0,0.00021369,2]
[348990550,1736921439840,-1246.44,0.00021369,3]
[348990551,1736921439850,-997.26,0.00021369,3]
[348990553,1736921439860,-684.73,0.00021369,3]
[348990555,1736921439870,-1337.81,0.00021369,3]
[348990556,1736921439879,-1509.14,0.00021369,2]
[348990557,1736921439889,-804.34,0.00021369,3]
[348990558,1736921439899,-208.47439689,0.00021438,2]
[348990559,1736921439908,-154.00934838,0.000215,2]
[348990560,1736921439918,-191.339806,0.00021506,2]
[348990561,1736921439927,-539.21,0.00021506,3]
[348990562,1736921439936,-4985.93,0.00021506,3]
[348990563,1736921439946,-511.89,0.00021506,3]
[348990564,1736921439955,-547.83,0.00021506,3]
[348990565,1736921439965,-1246.44,0.00021506,3]
[348990566,1736921439975,-997.26,0.00021506,3]
[348990567,1736921439984,-684.73,0.00021506,3]
[348990568,1736921439993,-1337.81,0.00021506,3]
[348990569,1736921440003,-1509.14,0.00021506,2]
[348990570,1736921440013,-804.34,0.00021506,3]
[348990571,1736921440023,-587.0,0.00021573,2]
[348990572,1736921440033,-3427.0,0.000216,4]
[348990573,1736921440043,-183.081458,0.00021643,2]
[348990574,1736921440052,-183.081458,0.00021643,2]
[348990575,1736921440062,-539.21,0.00021643,3]
[348990576,1736921440072,-4985.93,0.00021643,3]
[348990577,1736921440082,-511.89,0.00021643,3]
[348990578,1736921440091,-547.83,0.00021643,3]
[348990579,1736921440101,-1246.44,0.00021643,3]
[348990580,1736921440111,-997.26,0.00021643,3]
[348990581,1736921440122,-684.73,0.00021643,3]
[348990582,1736921440132,-1337.81,0.00021643,3]
[348990583,1736921440141,-1509.14,0.00021643,2]
[348990584,1736921440152,-804.34,0.00021643,3]
[348990585,1736921440161,-208.47439689,0.00021746,2]
[348990586,1736921440273,-163.564247,0.0002178,2]
[348990587,1736921440284,-163.564247,0.0002178,2]
[348990588,1736921440294,-539.21,0.0002178,3]
[348990589,1736921440303,-4985.93,0.0002178,3]
[348990590,1736921440313,-511.89,0.0002178,3]
[348990591,1736921440323,-547.83,0.0002178,3]
[348990592,1736921440334,-1246.44,0.0002178,3]
[348990593,1736921440344,-684.73,0.0002178,3]
[348990594,1736921440354,-997.26,0.0002178,3]
[348990595,1736921440364,-1337.81,0.0002178,3]
[348990596,1736921440374,-1509.14,0.0002178,2]
[348990597,1736921440384,-804.34,0.0002178,3]
[348990598,1736921440395,-151.0,0.000218,2]
[348990599,1736921440405,-151.0,0.000218,2]
[348990600,1736921440415,-151.0,0.00021892,6]
[348990601,1736921440424,-1196.34144659,0.000219,2]
[348990602,1736921440433,-6990.0,0.000219,4]
[348990603,1736921440443,-3353.3,0.000219,2]
[348990604,1736921440453,-188.5,0.000219,2]
[348990605,1736921440462,-150.0,0.000219,2]
[348990606,1736921440472,-163.564247,0.00021917,2]
[348990607,1736921440482,-163.564247,0.00021917,2]
[348990608,1736921440492,-183.081458,0.00021917,2]
[348990609,1736921440502,-183.081454,0.00021917,2]
[348990610,1736921440512,-539.21,0.00021917,3]
[348990611,1736921440522,-4985.93,0.00021917,3]
[348990612,1736921440532,-500.0,0.00021917,2]
[348990613,1736921440542,-500.0,0.00021917,2]
[348990614,1736921440551,-511.89,0.00021917,3]
[348990615,1736921440561,-500.0,0.00021917,2]
[348990616,1736921440570,-500.0,0.00021917,2]
[348990617,1736921440580,-500.0,0.00021917,2]
[348990618,1736921440590,-500.0,0.00021917,2]
[348990619,1736921440599,-500.0,0.00021917,2]
[348990620,1736921440608,-500.0,0.00021917,2]
[348990621,1736921440618,-500.0,0.00021917,2]
[348990622,1736921440630,-511.15192628,0.00021917,2]
[348990623,1736921440640,-547.83,0.00021917,3]
[348990624,1736921440654,-1246.44,0.00021917,3]
[348990625,1736921440664,-684.73,0.00021917,3]
[348990626,1736921440674,-997.26,0.00021917,3]
[348990627,1736921440683,-1337.81,0.00021917,3]
[348990628,1736921440694,-1509.14,0.00021917,2]
[348990629,1736921440704,-804.34,0.00021917,3]
[348990630,1736921440714,-3365.97070574,0.00022054,5]
[348990631,1736921440723,-1348.76127578,0.00022054,5]
[348990632,1736921440733,-208.47439689,0.00022054,2]
[348990633,1736921440743,-539.21,0.00022054,3]
[348990634,1736921440753,-4985.93,0.00022054,3]
[348990635,1736921440763,-511.89,0.00022054,3]
[348990636,1736921440772,-547.83,0.00022054,3]
[348990637,1736921440782,-1246.44,0.00022054,3]
[348990638,1736921440791,-684.73,0.00022054,3]
[348990639,1736921440802,-997.26,0.00022054,3]
[348990640,1736921440812,-1337.81,0.00022054,3]
[348990641,1736921440821,-1509.14,0.00022054,2]
[348990642,1736921440831,-804.34,0.00022054,3]
[348990643,1736921440840,-151.0,0.000221,7]
[348990644,1736921440851,-539.21,0.00022191,3]
[348990645,1736921440861,-4985.93,0.00022191,3]
[348990646,1736921440872,-511.89,0.00022191,3]
[348990647,1736921440882,-547.83,0.00022191,3]
[348990648,1736921440891,-1246.44,0.00022191,3]
[348990649,1736921440899,-684.73,0.00022191,3]
[348990650,1736921440908,-997.26,0.00022191,3]
[348990651,1736921440916,-1337.81,0.00022191,3]
[348990652,1736921440926,-1509.14,0.00022191,2]
[348990653,1736921440934,-804.34,0.00022191,3]
[348990654,1736921440942,-151.0,0.00022196,6]
[348990655,1736921440950,-368.0,0.000223,10]
[348990656,1736921440957,-163.564247,0.00022328,7]
[348990657,1736921440965,-163.564247,0.00022328,7]
[348990658,1736921440974,-539.35552279,0.00022328,3]
[348990659,1736921440984,-4986.05791503,0.00022328,3]
[348990660,1736921440994,-512.0592392,0.00022328,3]
[348990661,1736921441005,-547.88005874,0.00022328,3]
[348990662,1736921441014,-1246.66107341,0.00022328,3]
[348990663,1736921441024,-684.8110888,0.00022328,3]
[348990664,1736921441034,-997.36271992,0.00022328,3]
[348990665,1736921441043,-1338.01961668,0.00022328,3]
[348990666,1736921441053,-1509.33754383,0.00022328,2]
[348990667,1736921441063,-804.39567462,0.00022328,3]
[348990668,1736921441072,-208.47439689,0.00022362,2]
[348990669,1736921441081,-395.0,0.00022363,2]
[348990670,1736921441091,-188.0,0.000224,2]
[348990671,1736921441100,-1200.0,0.00022401,2]
[348990672,1736921441110,-151.0,0.000225,6]
[348990673,1736921441119,-800.0,0.0002263,2]
[348990674,1736921441129,-208.47439689,0.00022669,2]
[348990675,1736921441139,-353.4540553,0.00022712,2]
[348990676,1736921441149,-353.4540553,0.00022712,2]
[348990677,1736921441158,-353.4540553,0.00022712,2]
[348990678,1736921441168,-353.4540553,0.00022712,2]
[348990679,1736921441178,-353.4540553,0.00022712,2]
[348990680,1736921441187,-759.5267974,0.00022712,2]
[348990681,1736921441196,-351.1108083,0.00022712,2]
[348990682,1736921441206,-601.51241068,0.00022767,2]
[348990683,1736921441215,-208.0,0.00022801,2]
[348990684,1736921441224,-208.36,0.00022801,2]
[348990685,1736921441233,-151.0,0.00022804,7]
[348990686,1736921441243,-429.8052582,0.00022849,2]
[348990687,1736921441252,-153.9757311,0.00022849,2]
[348990688,1736921441262,-153.0,0.00022849,2]
[348990689,1736921441271,-451.6574045,0.00022849,2]
[348990690,1736921441282,-153.9757311,0.00022849,2]
[348990691,1736921441291,-153.9757311,0.00022849,2]
[348990692,1736921441300,-153.0,0.00022849,2]
[348990693,1736921441310,-153.9757311,0.00022849,2]
[348990694,1736921441319,-314.8470007,0.00022849,2]
[348990695,1736921441328,-432.4415254,0.00022849,2]
[348990696,1736921441338,-153.0,0.00022849,2]
[348990697,1736921441347,-150.0,0.00022872,2]
[348990698,1736921441356,-1329.47317146,0.00022876,3]
[348990699,1736921441366,-208.47439689,0.00022977,2]
[348990700,1736921441376,-7438.69753278,0.00023,2]
[348990701,1736921441386,-151.0,0.00023,7]
[348990702,1736921441395,-7438.69753278,0.00023,3]
[348990703,1736921441404,-151.0,0.00023108,7]
[348990704,1736921441414,-153.7592399,0.00023123,2]
[348990705,1736921441424,-153.0,0.00023123,2]
[348990706,1736921441433,-153.0,0.00023123,2]
[348990707,1736921441442,-150.0,0.00023157,2]
[348990708,1736921441451,-2070.0,0.00023157,2]
[348990709,1736921441461,-536.0,0.00023157,2]
[348990710,1736921441471,-2311.0,0.00023157,2]
[348990711,1736921441480,-161.0,0.00023225,2]
[348990712,1736921441491,-161.0,0.00023225,2]
[348990713,1736921441504,-161.0,0.00023225,2]
[348990714,1736921441514,-161.0,0.00023225,2]
[348990715,1736921441523,-161.0,0.00023225,2]
[348990716,1736921441533,-161.0,0.00023225,2]
[348990717,1736921441542,-161.0,0.00023225,2]
[348990718,1736921441551,-164.37,0.00023225,2]
[348990719,1736921441561,-208.47439689,0.00023285,2]
[348990720,1736921441571,-1064.60837822,0.00023328,7]
[348990721,1736921441590,-1362.78299918,0.00023328,7]
[348990722,1736921441631,-500.0,0.00019178,2]
[348990723,1736921441641,-500.0,0.00019315,3]
[348990724,1736921441652,-999.6086226,0.00023328,7]
[348990725,1736921441663,-151.0,0.00023412,7]
[348990726,1736921441673,-5386.63111104,0.00023452,2]
[348990727,1736921441690,-500.0,0.00019452,3]
[348990728,1736921441699,-485.93824471,0.00023452,2]
[348990729,1736921441715,-500.0,0.00019178,2]
[348990730,1736921441724,-1131.02204345,0.00023452,2]
[348990731,1736921441736,-15545.74514229,0.00023452,2]
[348990732,1736921441746,-9064.83354343,0.00023473,2]
[348990733,1736921441755,-5000.0,0.00023473,2]
[348990734,1736921441765,-5000.0,0.00023473,2]
[348990735,1736921441774,-5000.0,0.00023473,2]
[348990736,1736921441784,-5000.0,0.00023473,2]
[348990737,1736921441794,-823.0,0.00023535,2]
[348990738,1736921441803,-500.0,0.00023573,2]
[348990739,1736921441812,-500.0,0.00023573,2]
[348990740,1736921441822,-500.0,0.00023573,2]
[348990741,1736921441831,-620.13141338,0.00023573,2]
[348990742,1736921441840,-500.0,0.00023573,2]
[348990743,1736921441850,-1835.66806742,0.00023575,2]
[348990744,1736921441860,-1835.66806742,0.00023575,2]
[348990745,1736921441869,-1835.66806742,0.00023575,2]
[348990746,1736921441879,-1835.66806742,0.00023575,2]
[348990747,1736921441888,-1835.66806742,0.00023575,2]
[348990748,1736921441899,-1835.66806742,0.00023575,2]
[348990749,1736921441908,-1835.66806742,0.00023575,2]
[348990750,1736921441917,-1835.66806742,0.00023575,2]
[348990751,1736921441927,-1835.66806742,0.00023575,2]
[348990752,1736921441936,-1835.66806742,0.00023575,2]
[348990753,1736921441945,-1835.66806742,0.00023575,2]
[348990754,1736921441954,-1835.66806742,0.00023575,2]
[348990755,1736921441964,-1835.66806742,0.00023575,2]
[348990756,1736921441973,-1835.66806742,0.00023575,2]
[348990757,1736921441982,-1835.66806742,0.00023575,2]
[348990758,1736921441991,-1835.66806742,0.00023575,2]
[348990759,1736921442000,-1835.66806742,0.00023575,2]
[348990760,1736921442009,-1835.66806742,0.00023575,2]
[348990761,1736921442019,-1835.66806742,0.00023575,2]
[348990762,1736921442028,-1835.66,0.00023575,2]
[348990763,1736921442037,-2753.50210114,0.00023575,2]
[348990764,1736921442047,-2753.50210114,0.00023575,2]
[348990765,1736921442055,-2753.50210114,0.00023575,2]
[348990766,1736921442064,-2753.50210114,0.00023575,2]
[348990767,1736921442074,-2753.50210114,0.00023575,2]
[348990768,1736921442083,-2753.50210114,0.00023575,2]
[348990769,1736921442092,-2753.50210114,0.00023575,2]
[348990770,1736921442102,-2753.50210114,0.00023575,2]
[348990771,1736921442111,-2753.50210114,0.00023575,2]
[348990772,1736921442121,-2753.50210114,0.00023575,2]
[348990773,1736921442131,-2753.50210114,0.00023575,2]
[348990774,1736921442140,-2753.50210114,0.00023575,2]
[348990775,1736921442150,-2753.50210114,0.00023575,2]
[348990776,1736921442159,-2753.50210114,0.00023575,2]
[348990777,1736921442169,-2753.50210114,0.00023575,2]
[348990778,1736921442179,-2753.50210114,0.00023575,2]
[348990779,1736921442187,-2753.50210114,0.00023575,2]
[348990780,1736921442196,-2753.50210114,0.00023575,2]
[348990781,1736921442205,-2753.50210114,0.00023575,2]
[348990782,1736921442213,-2753.5,0.00023575,2]
[348990783,1736921442222,-163.564247,0.00023575,7]
[348990784,1736921442231,-163.564252,0.00023575,7]
[348990785,1736921442240,-151.0,0.00023575,7]
[348990786,1736921442249,-151.0,0.00023575,7]
[348990787,1736921442258,-12853.95991395,0.00023579,2]
[348990788,1736921442267,-208.47439689,0.00023592,2]
[348990789,1736921442275,-2000.0,0.000236,2]
[348990790,1736921442284,-2000.0,0.000236,2]
[348990791,1736921442292,-2000.0,0.000236,2]
[348990792,1736921442299,-153.0,0.00023671,2]
[348990793,1736921442308,-153.0,0.00023671,2]
[348990794,1736921442317,-153.0,0.00023671,2]
[348990795,1736921442326,-329.3151588,0.00023673,2]
[348990796,1736921442336,-500.0,0.00023673,2]
[348990797,1736921442345,-123183.01872962,0.00023679,61]
[348990804,1736921442482,-500.0,0.00019178,2]
[348990806,1736921442492,-3416.87,0.00019178,2]
[348990807,1736921442502,-386.18579765,0.00019315,3]
[348990808,1736921442512,-500.0,0.00019315,3]
[348990809,1736921442521,-2677.65594603,0.00019315,3]
[348990810,1736921442533,-739.21405397,0.00019315,3]
[348990811,1736921442542,-1137.51824169,0.00019452,3]
[348990825,1736921442988,-2279.35175831,0.00019452,3]
[348990826,1736921442999,-500.0,0.00019452,3]
[348990827,1736921443008,-500.0,0.00019589,3]
[348990828,1736921443017,-709.42147376,0.00019589,3]
[348990829,1736921443028,-589.87120693,0.00019589,3]
[348990830,1736921443073,-41.67728604,0.00019589,3]
[348990842,1736921446004,-502.9,0.00019589,3]
[348990844,1736921797115,250.549724,0.00013973,2]
[348990898,1736922632300,-2282.96773131,0.00015889,2]
[348990900,1736922632310,-348.05260825,0.00016607,2]
[348990902,1736922632319,-181.46895424,0.00016707,2]
[348990903,1736922632331,-500.0,0.00016876,2]
[348990906,1736922632341,-300.0,0.00017239,2]
[348990908,1736922632350,-3931.83723223,0.0001724,2]
[348990910,1736922632361,-10126.76991197,0.0001724,2]
[348990912,1736922632371,-162.7103373,0.00017266,2]
[348990914,1736922632380,-500.0,0.00017972,2]
[348990916,1736922632390,-24900.0,0.00018246,2]
[348990918,1736922632399,-524.61040855,0.00018724,2]
[348990920,1736922632408,-420.0,0.00018824,2]
[348990922,1736922632418,-823.51110556,0.000189,2]
[348990924,1736922632427,-308.50370541,0.00019078,2]
[348990926,1736922632438,-345.68491424,0.00019177,2]
[348990928,1736922632448,-500.0,0.00019177,2]
[348990930,1736922632457,-452.20426906,0.00019177,2]
[348990932,1736922632466,-189.31747713,0.00019177,2]
[348990934,1736922632475,-500.0,0.00019177,2]
[348990936,1736922632485,-500.0,0.00019177,2]
[348990938,1736922632494,-500.0,0.00019177,2]
[348990940,1736922632505,-500.0,0.00019177,2]
[348990942,1736922632514,-500.0,0.00019177,2]
[348990944,1736922632523,-500.0,0.00019177,2]
[348990946,1736922632533,-500.0,0.00019177,2]
[348990948,1736922632542,-500.0,0.00019177,2]
[348990950,1736922632555,-500.0,0.00019177,2]
[348990952,1736922632564,-500.0,0.00019177,2]
[348990954,1736922632573,-500.0,0.00019177,2]
[348990956,1736922632583,-500.0,0.00019177,2]
[348990958,1736922632593,-500.0,0.00019177,2]
[348990960,1736922632602,-503.38049741,0.00019177,2]
[348990962,1736922632611,-500.0,0.00019177,2]
[348990964,1736922632621,-602.30831591,0.00019177,2]
[348990966,1736922632631,-500.0,0.00019177,2]
[348990968,1736922632641,-500.0,0.00019177,2]
[348990970,1736922632649,-500.0,0.00019177,2]
[348990972,1736922632659,-500.0,0.00019177,2]
[348990974,1736922632669,-500.0,0.00019177,2]
[348990976,1736922632678,-500.0,0.00019177,2]
[348990978,1736922632687,-500.0,0.00019177,2]
[348990980,1736922632696,-500.0,0.00019177,2]
[348990982,1736922632706,-500.0,0.00019177,2]
[348990984,1736922632715,-500.0,0.00019177,2]
[348990986,1736922632726,-500.0,0.00019177,2]
[348990988,1736922632735,-500.0,0.00019177,2]
[348990990,1736922632744,-500.0,0.00019177,2]
[348990992,1736922632754,-500.0,0.00019177,2]
[348990994,1736922632763,-500.0,0.00019177,2]
[348990996,1736922632772,-500.0,0.00019177,2]
[348990998,1736922632782,-500.0,0.00019177,2]
[348991000,1736922632792,-500.0,0.00019177,2]
[348991002,1736922632803,-500.0,0.00019177,2]